bitfinex/quotes_BTCUSD_20250525
["timestamp","ask_amount","ask_price","bid_price","bid_amount"]
[1748165100501,0.16088167,106920.0,106910.0,1.404109]
[1748165100729,0.13445135,106920.0,106910.0,1.404109]
[1748165101229,0.13445135,106920.0,106910.0,1.081869]
[1748165101441,0.13445135,106920.0,106910.0,1.404109]
[1748165101685,0.01390579,106920.0,106910.0,1.404109]
[1748165102635,0.005,106920.0,106910.0,1.404109]
[1748165104975,0.005,106920.0,106910.0,1.744109]
[1748165110035,0.005,106920.0,106910.0,1.776409]
[1748165110267,0.005,106920.0,106910.0,1.744109]
[1748165117912,0.005,106920.0,106910.0,1.775809]
[1748165118685,0.002,106920.0,106910.0,1.759809]
[1748165118893,0.05738078,106930.0,106910.0,1.404109]
[1748165119102,0.05738078,106930.0,106920.0,4.71139]
[1748165119435,0.03095046,106930.0,106920.0,4.71139]
[1748165120053,0.05738078,106930.0,106920.0,4.71139]
[1748165122164,0.05738078,106930.0,106920.0,5.05139]
[1748165122366,0.05838078,106930.0,106920.0,5.05139]
[1748165125747,0.05838078,106930.0,106920.0,5.20067]
[1748165126491,0.14792634,106930.0,106920.0,5.05139]
[1748165126693,0.14792634,106930.0,106920.0,5.37291]
[1748165127316,0.14792634,106930.0,106920.0,5.05139]
[1748165127492,0.14792634,106930.0,106920.0,5.37291]
[1748165128743,0.03195046,106930.0,106920.0,5.38226614]
[1748165129623,0.00105046,106930.0,106920.0,5.38226614]
[1748165129830,0.01755046,106930.0,106920.0,5.38226614]
[1748165130406,0.03395046,106930.0,106920.0,5.38226614]
[1748165131033,0.01755046,106930.0,106920.0,5.38226614]
[1748165131571,0.00105046,106930.0,106920.0,5.38226614]
[1748165131797,0.00105046,106930.0,106920.0,5.71814614]
[1748165135601,0.00105046,106930.0,106920.0,5.75004614]
[1748165137125,0.00105046,106930.0,106920.0,5.8395917]
[1748165138310,5.046e-05,106930.0,106920.0,5.8395917]
[1748165139397,5.046e-05,106930.0,106920.0,5.8405917]
[1748165143292,0.0322,106950.0,106920.0,5.8405917]
[1748165143468,0.0322,106950.0,106940.0,0.34]
[1748165143676,0.0322,106950.0,106940.0,5.53928]
[1748165145937,0.0352,106950.0,106940.0,5.53928]
[1748165146653,0.0372,106950.0,106940.0,5.53928]
[1748165148973,0.005,106950.0,106940.0,5.53928]
[1748165149955,0.0312,106960.0,106940.0,5.53928]
[1748165150156,0.0312,106960.0,106950.0,5.22204]
[1748165151868,0.0322,106960.0,106950.0,5.22204]
[1748165152998,0.0322,106960.0,106950.0,5.55784]
[1748165153409,0.001,106960.0,106950.0,5.89784]
[1748165157631,0.001,106960.0,106950.0,5.92984]
[1748165157845,0.001,106960.0,106950.0,6.01938556]
[1748165158462,0.001,106960.0,106950.0,6.04295524]
[1748165158678,0.001,106960.0,106950.0,5.83891524]
[1748165158679,0.0323,106960.0,106950.0,5.83891524]
[1748165158885,0.0313,106960.0,106950.0,5.89876]
[1748165159096,0.0313,106960.0,106950.0,6.048]
[1748165162694,0.0313,106960.0,106950.0,5.72676]
[1748165163343,0.0313,106960.0,106950.0,6.048]
[1748165164447,0.0313,106960.0,106950.0,5.72676]
[1748165164622,0.0313,106960.0,106950.0,6.048]
[1748165166798,0.0308,106970.0,106950.0,6.048]
[1748165166964,0.0308,106970.0,106960.0,5.05]
[1748165168078,0.03130462,106970.0,106960.0,5.05]
[1748165168422,0.03230462,106970.0,106960.0,5.05]
[1748165170349,0.03230462,106970.0,106960.0,5.06420894]
[1748165171986,0.00150462,106970.0,106960.0,5.40420894]
[1748165173873,0.03300462,106970.0,106960.0,5.72544894]
[1748165177548,0.03300462,106970.0,106960.0,5.40420894]
[1748165177761,0.03300462,106970.0,106960.0,5.72524894]
[1748165177955,0.01780462,106970.0,106960.0,5.72524894]
[1748165178488,0.03360462,106970.0,106960.0,5.72524894]
[1748165179907,0.00150462,106970.0,106960.0,5.75584894]
[1748165180137,0.00150462,106970.0,106960.0,5.72524894]
[1748165180341,0.00150462,106970.0,106960.0,5.72520894]
[1748165180960,0.03200462,106970.0,106960.0,5.72520894]
[1748165185455,0.03200462,106970.0,106960.0,5.40420894]
[1748165185655,0.03200462,106970.0,106960.0,5.72520894]
[1748165186809,0.00150462,106970.0,106960.0,5.72520894]
[1748165193542,0.01720462,106970.0,106960.0,5.72520894]
[1748165194379,0.01720462,106970.0,106960.0,6.06088894]
[1748165195464,0.03220462,106970.0,106960.0,5.91168894]
[1748165195663,0.03220462,106970.0,106960.0,6.06088894]
[1748165197839,0.01720462,106970.0,106960.0,6.06088894]
[1748165198050,0.00150462,106970.0,106960.0,6.06088894]
[1748165201373,0.01650462,106970.0,106960.0,6.06088894]
[1748165202750,0.03170462,106970.0,106960.0,6.06088894]
[1748165203063,0.03170462,106970.0,106960.0,5.73988894]
[1748165203203,0.03170462,106970.0,106960.0,6.06084894]
[1748165204110,0.03170462,106970.0,106960.0,5.73988894]
[1748165204319,0.03170462,106970.0,106960.0,6.06084894]
[1748165212158,0.03170462,106970.0,106960.0,6.06052894]
[1748165215021,0.01650462,106970.0,106960.0,6.06052894]
[1748165215341,0.00150462,106970.0,106960.0,6.06052894]
[1748165218458,0.00150462,106970.0,106960.0,6.08409862]
[1748165219326,0.00150462,106970.0,106960.0,6.06052894]
[1748165220328,0.00150462,106970.0,106960.0,5.91132894]
[1748165220543,0.00150462,106970.0,106960.0,6.06052894]
[1748165222513,0.01810462,106970.0,106960.0,5.91132894]
[1748165222716,0.03320462,106970.0,106960.0,6.06052894]
[1748165225183,0.03320462,106970.0,106960.0,5.73988894]
[1748165225390,0.03320462,106970.0,106960.0,6.06052894]
[1748165225932,0.03320462,106970.0,106960.0,5.91132894]
[1748165226114,0.03320462,106970.0,106960.0,6.06052894]
[1748165227915,0.01810462,106970.0,106960.0,6.06052894]
[1748165228113,0.00150462,106970.0,106960.0,6.06052894]
[1748165228315,0.0477773,106980.0,106960.0,5.72052894]
[1748165228520,0.0477773,106980.0,106970.0,5.05233668]
[1748165228726,0.0477773,106980.0,106970.0,5.05]
[1748165230176,0.0487773,106980.0,106970.0,5.39]
[1748165231000,0.0507773,106980.0,106970.0,5.39]
[1748165231713,0.0497773,106980.0,106970.0,5.39]
[1748165231919,0.0517773,106980.0,106970.0,5.39]
[1748165234311,0.0517773,106980.0,106970.0,5.5614]
[1748165236650,0.0517773,106980.0,106970.0,5.7106]
[1748165239265,0.0517773,106980.0,106970.0,6.04624]
[1748165239469,0.0200773,106980.0,106970.0,6.04624]
[1748165239609,0.0358773,106980.0,106970.0,6.04624]
[1748165239810,0.0515773,106980.0,106970.0,6.04624]
[1748165240372,0.0495773,106980.0,106970.0,6.04624]
[1748165240802,0.0495773,106980.0,106970.0,6.05024]
[1748165240959,0.0475773,106980.0,106970.0,6.05024]
[1748165241506,0.0475773,106980.0,106970.0,6.05424]
[1748165241640,0.0475773,106980.0,106970.0,6.0538]
[1748165243992,0.0475773,106980.0,106970.0,5.73364]
[1748165244382,0.0475773,106980.0,106970.0,6.0538]
[1748165248164,0.0475773,106980.0,106970.0,5.73364]
[1748165248318,0.0475773,106980.0,106970.0,6.0538]
[1748165250793,0.0475773,106980.0,106970.0,5.73364]
[1748165251022,0.0475773,106980.0,106970.0,6.0538]
[1748165252997,0.0475773,106980.0,106970.0,5.9046]
[1748165253255,0.0475773,106980.0,106970.0,6.0538]
[1748165255608,0.0475773,106980.0,106970.0,5.73364]
[1748165255830,0.0475773,106980.0,106970.0,6.0538]
[1748165256790,0.0475773,106980.0,106970.0,6.0498]
[1748165257038,0.0475773,106980.0,106970.0,6.0458]
[1748165257272,0.16355318,106980.0,106970.0,5.73064]
[1748165257514,0.16355318,106980.0,106970.0,6.0508]
[1748165258269,0.16355318,106980.0,106970.0,6.05084]
[1748165259428,0.16355318,106980.0,106970.0,5.73064]
[1748165259603,0.16355318,106980.0,106970.0,6.05084]
[1748165260264,0.16355318,106980.0,106970.0,5.395]
[1748165260473,0.16355318,106980.0,106970.0,6.05088]
[1748165261191,0.0475773,106980.0,106970.0,6.07559584]
[1748165261417,0.0318773,106980.0,106970.0,6.09430436]
[1748165261655,0.0318773,106980.0,106970.0,6.07359584]
[1748165261875,0.0328773,106980.0,106970.0,6.07359584]
[1748165262107,0.0170773,106980.0,106970.0,6.04888]
[1748165263022,0.0170773,106980.0,106970.0,6.04588]
[1748165263893,0.0160773,106980.0,106970.0,6.04688]
[1748165264110,0.0160773,106980.0,106970.0,6.04788]
[1748165265638,0.0473773,106980.0,106970.0,6.04788]
[1748165268716,0.0160773,106980.0,106970.0,6.04788]
[1748165269990,0.0318773,106980.0,106970.0,6.04788]
[1748165270758,0.0476773,106980.0,106970.0,6.04788]
[1748165274098,0.0160773,106980.0,106970.0,6.04788]
[1748165275701,0.0160773,106980.0,106970.0,5.89868]
[1748165275900,0.0325773,106980.0,106970.0,6.04788]
[1748165276129,0.0482773,106980.0,106970.0,6.04788]
[1748165278036,0.0482773,106980.0,106970.0,6.04752]
[1748165280211,0.0325773,106980.0,106970.0,6.04752]
[1748165280390,0.0160773,106980.0,106970.0,6.04752]
[1748165281846,0.0160773,106980.0,106970.0,5.72768]
[1748165282058,0.0160773,106980.0,106970.0,6.04752]
[1748165282596,0.0325773,106980.0,106970.0,6.04752]
[1748165282950,0.0325773,106980.0,106970.0,6.13706556]
[1748165282951,0.0160773,106980.0,106970.0,6.13706556]
[1748165283452,0.0160773,106980.0,106970.0,6.16796556]
[1748165284383,0.0160773,106980.0,106970.0,6.13706556]
[1748165284843,0.0324773,106980.0,106970.0,6.13706556]
[1748165285959,0.0160773,106980.0,106970.0,6.13706556]
[1748165287465,0.0160773,106980.0,106970.0,6.16756556]
[1748165288947,0.0160773,106980.0,106970.0,6.13706556]
[1748165289159,0.0160773,106980.0,106970.0,5.81722556]
[1748165289359,0.0160773,106980.0,106970.0,6.13706556]
[1748165290108,0.0160773,106980.0,106970.0,6.1941814]
[1748165293017,0.0160773,106980.0,106970.0,6.16946556]
[1748165293462,0.0160773,106980.0,106970.0,6.19745256]
[1748165294299,0.01110613,107030.0,106970.0,5.8821684]
[1748165294509,0.03195141,107010.0,106980.0,5.19899721]
[1748165294721,0.03195141,107010.0,106990.0,5.05]
[1748165294948,0.03195141,107010.0,107000.0,0.3198]
[1748165295178,0.03195141,107010.0,107000.0,5.3698]
[1748165296037,0.03195141,107010.0,107000.0,5.3708]
[1748165297548,0.03195141,107010.0,107000.0,5.7108]
[1748165298455,0.14792729,107010.0,107000.0,5.391]
[1748165298670,0.14792729,107010.0,107000.0,5.71076]
[1748165301271,0.14792729,107010.0,107000.0,5.71044]
[1748165301475,0.14792729,107010.0,107000.0,5.391]
[1748165301698,0.14792729,107010.0,107000.0,5.71044]
[1748165304257,0.12149697,107010.0,107000.0,5.56128]
[1748165304467,0.12149697,107010.0,107000.0,5.71044]
[1748165305091,0.12149697,107010.0,107000.0,6.04604]
[1748165307085,0.12149697,107010.0,107000.0,5.89688]
[1748165307355,0.12149697,107010.0,107000.0,6.04604]
[1748165308531,0.14792729,107010.0,107000.0,6.04604]
[1748165310940,0.05838173,107010.0,107000.0,6.04604]
[1748165314346,0.03195141,107010.0,107000.0,6.04604]
[1748165314751,0.05838173,107010.0,107000.0,6.04604]
[1748165314966,0.03195141,107010.0,107000.0,6.04604]
[1748165315177,0.05838173,107010.0,107000.0,6.04604]
[1748165317728,0.01605141,107010.0,107000.0,6.04604]
[1748165317947,0.00015141,107010.0,107000.0,6.04604]
[1748165322928,0.03215141,107010.0,107000.0,6.04604]
[1748165324670,0.03215141,107010.0,107000.0,5.7266]
[1748165324875,0.03215141,107010.0,107000.0,6.04604]
[1748165325323,0.14812729,107010.0,107000.0,5.7266]
[1748165325530,0.14812729,107010.0,107000.0,5.55688]
[1748165325733,0.14812729,107010.0,107000.0,5.70604]
[1748165325938,0.14812729,107010.0,107000.0,6.04604]
[1748165328635,0.14812729,107010.0,107000.0,5.7266]
[1748165328859,0.14812729,107010.0,107000.0,5.582272]
[1748165329069,0.13623782,107010.0,107000.0,4.374701]
[1748165329280,0.13623782,107010.0,107000.0,3.868316]
[1748165329707,0.8833796,107010.0,107000.0,3.868316]
[1748165329912,0.8833796,107010.0,107000.0,0.65568]
[1748165330124,0.14515903,107010.0,107000.0,0.65568]
[1748165332590,0.14515903,107010.0,107000.0,0.99568]
[1748165336160,0.13061818,107010.0,107000.0,0.99568]
[1748165336559,0.12169697,107010.0,107000.0,0.99568]
[1748165340671,0.14812729,107010.0,107000.0,3.167144]
[1748165340875,0.14812729,107010.0,107000.0,3.141796]
[1748165341306,0.03215141,107010.0,107000.0,2.360336]
[1748165341717,0.05858173,107010.0,107000.0,2.023473]
[1748165341898,0.03215141,107010.0,107000.0,2.023473]
[1748165342214,0.03215141,107010.0,107000.0,1.917449]
[1748165342387,0.05858173,107010.0,107000.0,1.917449]
[1748165342690,0.03215141,107010.0,107000.0,1.917449]
[1748165343389,0.05858173,107010.0,107000.0,1.917449]
[1748165344056,0.05858173,107010.0,107000.0,1.37485]
[1748165344236,0.05858173,107010.0,107000.0,1.325662]
[1748165345624,0.05858173,107010.0,107000.0,1.006582]
[1748165345840,0.12169697,107010.0,107000.0,0.99568]
[1748165346264,0.12169697,107010.0,107000.0,0.84652]
[1748165346477,0.12169697,107010.0,107000.0,0.99568]
[1748165346691,0.13061091,107010.0,107000.0,0.99568]
[1748165347141,0.14515176,107010.0,107000.0,0.84652]
[1748165347350,0.89229354,107010.0,107000.0,0.99568]
[1748165348326,0.89229354,107010.0,107000.0,0.84652]
[1748165348540,0.89729354,107010.0,107000.0,0.65568]
[1748165348699,0.89729354,107010.0,107000.0,0.65572]
[1748165349306,0.89729354,107010.0,107000.0,0.50556]
[1748165349724,0.89229354,107010.0,107000.0,0.65472]
[1748165349931,0.89629354,107010.0,107000.0,0.65472]
[1748165350141,0.89829354,107010.0,107000.0,0.50556]
[1748165350769,0.90739967,107010.0,107000.0,0.50556]
[1748165351010,0.91239967,107010.0,107000.0,0.50556]
[1748165351210,0.0315,106960.0,106940.0,0.027994]
[1748165351369,0.12104556,106960.0,106950.0,0.61343029]
[1748165351583,0.12104556,106960.0,106950.0,0.859791]
[1748165351812,0.12104556,106960.0,106950.0,1.199791]
[1748165352592,0.12104556,106960.0,106950.0,1.20029562]
[1748165352795,0.0163,106960.0,106950.0,1.20029562]
[1748165353001,0.02643032,106970.0,106950.0,1.20129562]
[1748165353002,0.05793032,106970.0,106950.0,1.20129562]
[1748165353228,0.14747588,106970.0,106960.0,0.113434]
[1748165355019,0.14747588,106970.0,106960.0,0.116434]
[1748165355455,0.14747588,106970.0,106960.0,0.438594]
[1748165359306,0.14747588,106970.0,106960.0,0.43790964]
[1748165359636,0.14747588,106970.0,106960.0,0.4372279]
[1748165364484,0.14747588,106970.0,106960.0,0.43677036]
[1748165365386,0.14747588,106970.0,106960.0,0.43658299]
[1748165367790,0.14747588,106970.0,106960.0,0.32488]
[1748165369406,0.14752679,106970.0,106960.0,0.32488]
[1748165370560,0.14747588,106970.0,106960.0,0.32482909]
[1748165370810,0.14747588,106970.0,106960.0,0.00594909]
[1748165370952,0.15247588,106970.0,106960.0,0.17558909]
[1748165371174,0.88772819,106970.0,106960.0,0.00594909]
[1748165371391,0.88272819,106970.0,106960.0,0.00594909]
[1748165371599,0.88272819,106970.0,106960.0,0.17558909]
[1748165371837,0.89161527,106970.0,106960.0,0.17558909]
[1748165372221,0.89161527,106970.0,106960.0,0.17258909]
[1748165372435,0.89361527,106970.0,106960.0,0.17258909]
[1748165373016,0.05114085,106960.0,106950.0,0.33614462]
[1748165373229,0.88782819,106960.0,106950.0,0.50578462]
[1748165374033,0.9078214,106960.0,106950.0,0.50578462]
[1748165374233,0.9078214,106960.0,106950.0,0.33614462]
[1748165374444,0.9078214,106960.0,106950.0,0.50578462]
[1748165374638,0.9098214,106960.0,106950.0,0.50578462]
[1748165374846,0.9108214,106960.0,106950.0,0.50578462]
[1748165377657,0.9108214,106960.0,106950.0,0.65506462]
[1748165379879,0.16367962,106960.0,106950.0,0.65506462]
[1748165380080,0.9108214,106960.0,106950.0,0.65506462]
[1748165382993,0.16367962,106960.0,106950.0,0.65506462]
[1748165383236,0.9108214,106960.0,106950.0,0.65506462]
[1748165386563,0.9108214,106960.0,106950.0,0.50582462]
[1748165386765,0.9108214,106960.0,106950.0,0.65510462]
[1748165387225,0.16367962,106960.0,106950.0,0.65510462]
[1748165387429,0.9108214,106960.0,106950.0,0.33614462]
[1748165387727,0.9108214,106960.0,106950.0,0.65510462]
[1748165390724,0.9108214,106960.0,106950.0,0.65478462]
[1748165392296,0.0373,106950.0,106930.0,0.33588]
[1748165392490,0.08954556,106940.0,106920.0,0.3726]
[1748165392697,0.08954556,106940.0,106930.0,0.50936]
[1748165393317,0.08954556,106940.0,106930.0,0.67484]
[1748165393676,0.08954556,106940.0,106930.0,0.67684]
[1748165393880,0.08954556,106940.0,106930.0,0.67484]
[1748165394059,0.08954556,106940.0,106930.0,0.67684]
[1748165395750,0.08954556,106940.0,106930.0,0.66064]
[1748165397128,0.11597588,106940.0,106930.0,2.473835]
[1748165397331,0.02643032,106940.0,106930.0,3.034083]
[1748165397532,0.02643032,106940.0,106930.0,3.369963]
[1748165398293,0.02643032,106940.0,106930.0,3.234613]
[1748165398493,0.02643032,106940.0,106930.0,3.084613]
[1748165400417,0.03193494,106960.0,106940.0,0.0317]
[1748165400627,0.09005018,106960.0,106950.0,0.52098]
[1748165400853,0.09005018,106960.0,106950.0,1.270707]
[1748165401053,0.00942554,106960.0,106950.0,1.270707]
[1748165401902,0.01042554,106960.0,106950.0,1.36025256]
[1748165402379,0.00050462,106960.0,106950.0,1.36025256]
[1748165402718,0.001,106960.0,106950.0,1.36025256]
[1748165403121,0.05733032,106980.0,106960.0,0.34]
[1748165403324,0.0309,106980.0,106970.0,0.31856]
[1748165403542,0.12044556,106980.0,106970.0,0.31856]
[1748165404213,0.02643032,106960.0,106940.0,0.0317]
[1748165404736,0.04163032,106960.0,106950.0,0.443889]
[1748165404946,0.04163032,106960.0,106950.0,0.422982]
[1748165405150,0.04163032,106960.0,106950.0,0.762982]
[1748165405449,0.04163032,106960.0,106950.0,0.104422]
[1748165405677,0.0309,106950.0,106940.0,0.002]
[1748165405876,0.12044556,106950.0,106940.0,0.32056]
[1748165406214,0.12044556,106950.0,106940.0,0.66056]
[1748165406629,0.12044556,106950.0,106940.0,0.32056]
[1748165407032,0.12044556,106950.0,106940.0,0.65856]
[1748165407282,0.11944556,106950.0,106940.0,0.65856]
[1748165408896,0.12044556,106950.0,106940.0,0.65856]
[1748165415486,0.12044556,106950.0,106940.0,0.50932]
[1748165415719,0.0305,106940.0,106930.0,0.33638462]
[1748165415943,0.12004556,106940.0,106930.0,0.99498462]
[1748165417988,0.12004556,106940.0,106930.0,0.99598462]
[1748165418602,0.12004556,106940.0,106930.0,0.67738462]
[1748165418803,0.12004556,106940.0,106930.0,0.99698462]
[1748165420316,0.12004556,106940.0,106930.0,1.13228762]
[1748165423277,0.12004556,106940.0,106930.0,1.10685962]
[1748165423479,0.12004556,106940.0,106930.0,1.11522962]
[1748165425705,0.12004556,106940.0,106930.0,0.99698462]
[1748165427582,0.12004556,106940.0,106930.0,0.99666462]
[1748165427855,0.12004556,106940.0,106930.0,0.84738462]
[1748165428000,0.12004556,106940.0,106930.0,0.99666462]
[1748165429222,0.12004556,106940.0,106930.0,0.67838462]
[1748165429435,0.12004556,106940.0,106930.0,0.99666462]
[1748165433344,0.12504556,106940.0,106930.0,0.99666462]
[1748165433548,0.13958641,106940.0,106930.0,0.50738462]
[1748165433759,0.13958641,106940.0,106930.0,0.65666462]
[1748165433960,0.1484991,106940.0,106930.0,0.65666462]
[1748165434483,0.1484991,106940.0,106930.0,0.65566462]
[1748165434687,0.1484991,106940.0,106930.0,0.65466462]
[1748165434912,0.13195825,106940.0,106930.0,0.65466462]
[1748165435110,0.10345825,106940.0,106930.0,0.65466462]
[1748165435337,0.10345825,106940.0,106930.0,1.22758662]
[1748165435532,0.10345825,106940.0,106930.0,1.18489262]
[1748165436270,0.09454556,106940.0,106930.0,0.95008262]
[1748165438308,0.09454556,106940.0,106930.0,1.30628262]
[1748165438481,0.03143032,106940.0,106930.0,1.32208262]
[1748165438729,0.005,106940.0,106930.0,1.32208262]
[1748165438853,0.03753645,106960.0,106950.0,0.0162]
[1748165439053,0.03753645,106960.0,106950.0,2.62684417]
[1748165439256,0.01110613,106960.0,106950.0,5.056314]
[1748165439466,0.6953,106980.0,106960.0,0.0162]
[1748165439672,0.08954556,106970.0,106960.0,0.018537]
[1748165439896,0.11597588,106970.0,106960.0,1.571263]
[1748165440072,0.11597588,106970.0,106960.0,1.568926]
[1748165440315,0.11597588,106970.0,106960.0,1.29205]
[1748165440823,0.11797588,106970.0,106960.0,1.29205]
[1748165441148,0.11597588,106970.0,106960.0,1.29205]
[1748165441346,0.11697588,106970.0,106960.0,1.29205]
[1748165441852,0.09054556,106970.0,106960.0,1.274513]
[1748165442026,0.09054556,106970.0,106960.0,1.28885192]
[1748165443749,0.09054556,106970.0,106960.0,1.25408392]
[1748165445094,0.11697588,106970.0,106960.0,1.25408392]
[1748165446660,0.11697588,106970.0,106960.0,1.21003692]
[1748165447717,0.11697588,106970.0,106960.0,0.95098592]
[1748165447925,0.09054556,106970.0,106960.0,0.89574592]
[1748165448669,0.11697588,106970.0,106960.0,0.89574592]
[1748165453023,0.02643032,106960.0,106950.0,0.34]
[1748165453229,0.14807588,106960.0,106950.0,0.65788]
[1748165454381,0.14807588,106960.0,106950.0,0.65988]
[1748165454601,0.14807588,106960.0,106950.0,0.66088]
[1748165455929,0.12164556,106960.0,106950.0,0.66088]
[1748165457328,0.12164556,106960.0,106950.0,1.30114]
[1748165458268,0.08954556,106960.0,106950.0,1.30114]
[1748165459329,0.02643032,106960.0,106950.0,1.33264]
[1748165459551,0.04529075,106980.0,106950.0,1.33264]
[1748165459771,0.02643032,106960.0,106950.0,0.66088]
[1748165459986,0.11597588,106960.0,106950.0,1.108414]
[1748165460189,0.14737588,106960.0,106950.0,0.929646]
[1748165460390,0.14737588,106960.0,106950.0,0.772409]
[1748165460603,0.12094556,106960.0,106950.0,0.623169]
[1748165460815,0.12094556,106960.0,106950.0,0.461484]
[1748165461026,0.12094556,106960.0,106950.0,0.521651]
[1748165461230,0.12094556,106960.0,106950.0,0.160364]
[1748165461443,0.12094556,106960.0,106950.0,0.31888]
[1748165461444,0.14048641,106960.0,106950.0,0.31888]
[1748165461655,0.14048641,106960.0,106950.0,0.32088]
[1748165462067,0.1493852,106960.0,106950.0,0.32088]
[1748165462489,0.1493852,106960.0,106950.0,0.31988]
[1748165462705,0.1443852,106960.0,106950.0,0.31988]
[1748165462865,0.1443852,106960.0,106950.0,0.31888]
[1748165463477,0.1453852,106960.0,106950.0,0.31888]
[1748165463844,0.1463852,106960.0,106950.0,0.31888]
[1748165466416,0.1463852,106960.0,106950.0,0.001]
[1748165466618,0.1463852,106960.0,106950.0,0.31888]
[1748165467963,0.1463852,106960.0,106950.0,0.16964]
[1748165468172,0.1463852,106960.0,106950.0,0.31888]
[1748165471277,0.1463852,106960.0,106950.0,0.31896]
[1748165472076,0.1463852,106960.0,106950.0,0.001]
[1748165472277,0.89352698,106960.0,106950.0,0.16968]
[1748165472475,0.89352698,106960.0,106950.0,0.001]
[1748165472735,0.89352698,106960.0,106950.0,0.16968]
[1748165472893,0.89352698,106960.0,106950.0,0.001]
[1748165473300,0.89352698,106960.0,106950.0,0.16968]
[1748165473497,0.90463311,106960.0,106950.0,0.16968]
[1748165474119,0.90363311,106960.0,106950.0,0.16968]
[1748165474567,0.90363311,106960.0,106950.0,0.16868]
[1748165474744,0.91744128,106960.0,106950.0,0.16868]
[1748165475082,0.0356,106940.0,106930.0,0.33638462]
[1748165475261,0.12514556,106940.0,106930.0,0.65434462]
[1748165475620,0.13404435,106940.0,106930.0,0.65434462]
[1748165476445,0.1485852,106940.0,106930.0,0.65434462]
[1748165476830,0.1485852,106940.0,106930.0,0.65534462]
[1748165477458,0.13968641,106940.0,106930.0,0.65634462]
[1748165478806,0.12418641,106940.0,106930.0,0.65634462]
[1748165479337,0.13928641,106940.0,106930.0,0.65634462]
[1748165479941,0.12418641,106940.0,106930.0,0.65634462]
[1748165480371,0.14058641,106940.0,106930.0,0.65634462]
[1748165481338,0.10908641,106940.0,106930.0,0.65634462]
[1748165482064,0.12548641,106940.0,106930.0,0.65634462]
[1748165482463,0.14108641,106940.0,106930.0,0.65634462]
[1748165483277,0.12468641,106940.0,106930.0,0.65634462]
[1748165483474,0.10408641,106940.0,106930.0,2.54064762]
[1748165483727,0.11299211,106940.0,106930.0,0.99634462]
[1748165484095,0.14499211,106940.0,106930.0,0.50670462]
[1748165484301,0.14999211,106940.0,106930.0,0.65598462]
[1748165485642,0.14751337,106940.0,106930.0,0.65598462]
[1748165486228,0.14751337,106940.0,106930.0,0.33838462]
[1748165486428,0.14751337,106940.0,106930.0,0.65598462]
[1748165488755,0.14751337,106940.0,106930.0,0.33838462]
[1748165488958,0.14751337,106940.0,106930.0,0.65598462]
[1748165490533,0.1586195,106940.0,106930.0,0.65598462]
[1748165490740,0.1266195,106940.0,106930.0,0.99598462]
[1748165491133,0.1420195,106940.0,106930.0,0.99598462]
[1748165491344,0.1581195,106940.0,106930.0,0.99598462]
[1748165491660,0.14701337,106940.0,106930.0,0.99598462]
[1748165493730,0.09597252,106940.0,106930.0,2.25914762]
[1748165493970,0.14201337,106940.0,106930.0,0.99598462]
[1748165494203,0.88915515,106940.0,106930.0,0.50670462]
[1748165494684,1.58445515,106940.0,106930.0,0.50670462]
[1748165494917,1.59099039,106940.0,106930.0,0.50670462]
[1748165495405,1.60011108,106940.0,106930.0,0.50570462]
[1748165495640,1.60311108,106940.0,106930.0,0.50570462]
[1748165495871,1.60311108,106940.0,106930.0,0.33738462]
[1748165496112,1.48665259,106940.0,106930.0,0.00050462]
[1748165496341,1.51478056,106940.0,106930.0,0.00050462]
[1748165496801,0.76168263,106920.0,106910.0,0.16832]
[1748165497026,0.88272819,106920.0,106910.0,0.16847146]
[1748165497720,0.13558641,106920.0,106910.0,0.16847146]
[1748165498108,0.13658641,106920.0,106910.0,0.16847146]
[1748165498342,0.13658641,106920.0,106910.0,0.16851146]
[1748165498790,0.17146321,106920.0,106910.0,0.16851146]
[1748165498997,0.91860499,106920.0,106910.0,0.16851146]
[1748165499840,0.90747452,106920.0,106910.0,0.16851146]
[1748165500267,0.90747452,106920.0,106910.0,0.00015146]
[1748165500484,0.90747452,106920.0,106910.0,0.16851146]
[1748165501092,0.16033274,106920.0,106910.0,0.16851146]
[1748165501934,0.17345436,106920.0,106910.0,0.16851146]
[1748165502900,0.17245436,106920.0,106910.0,0.00015146]
[1748165503110,0.15761373,106920.0,106910.0,0.16851146]
[1748165503706,0.15961373,106920.0,106910.0,0.16851146]
[1748165504877,0.15961373,106920.0,106910.0,0.00015146]
[1748165505079,0.15961373,106920.0,106910.0,0.16851146]
[1748165505829,0.90675551,106920.0,106910.0,0.00015146]
[1748165506040,0.90675551,106920.0,106910.0,0.16851146]
[1748165507788,0.11357288,106920.0,106910.0,0.19961146]
[1748165508236,0.11357288,106920.0,106910.0,0.53961146]
[1748165508597,0.09354556,106920.0,106910.0,0.65619046]
[1748165510638,0.09154556,106920.0,106910.0,0.65619046]
[1748165510837,0.09054556,106920.0,106910.0,0.65619046]
[1748165511070,0.001,106920.0,106910.0,0.65619046]
[1748165512164,0.02643032,106940.0,106930.0,0.0155]
[1748165512378,0.11597588,106940.0,106930.0,4.390282]
[1748165512576,0.80207067,106960.0,106940.0,0.0307]
[1748165512739,0.12131152,106960.0,106950.0,0.65364]
[1748165512945,0.19631623,106960.0,106950.0,0.65364]
[1748165513147,0.16347246,106960.0,106950.0,0.65364]
[1748165513353,0.17801331,106960.0,106950.0,0.33596]
[1748165513554,0.21441331,106960.0,106950.0,0.33596]
[1748165513974,0.20991793,106960.0,106950.0,0.65328]
[1748165514307,0.20991793,106960.0,106950.0,0.65428]
[1748165514881,0.21880777,106960.0,106950.0,0.65328]
[1748165515082,0.21980777,106960.0,106950.0,0.65328]
[1748165515281,0.22180777,106960.0,106950.0,0.65328]
[1748165515539,0.22080777,106960.0,106950.0,0.65328]
[1748165515676,0.21880777,106960.0,106950.0,0.65328]
[1748165515876,0.22280777,106960.0,106950.0,0.33596]
[1748165516079,0.23392939,106960.0,106950.0,0.50396]
[1748165516791,0.23792939,106960.0,106950.0,0.50396]
[1748165517136,0.23792939,106960.0,106950.0,0.33596]
[1748165517306,0.23792939,106960.0,106950.0,0.50396]
[1748165517880,0.16400249,106960.0,106950.0,0.50396]
[1748165521394,0.16400249,106960.0,106950.0,0.33596]
[1748165521602,0.17400249,106960.0,106950.0,0.50396]
[1748165521806,0.56400249,106960.0,106950.0,0.50396]
[1748165522013,0.59201549,106960.0,106950.0,0.50396]
[1748165522477,0.5957345,106960.0,106950.0,0.50396]
[1748165522688,0.97525601,106960.0,106950.0,0.50396]
[1748165522899,1.12457601,106960.0,106950.0,0.50396]